Cogmind - Beta 13 @@@ ROGUE MODE // 2024.04.28 @ 07:55:40 Player: Fazzonamite Result: Destroyed by XE-5UV(R) with Subdweller Machine Gun Performance ------------- Evolutions (0) 0 Regions Visited (3) 600 Robots Destroyed (12) 60 Value Destroyed (218) 218 Prototype IDs (3) 60 Alien Tech Used (0) 0 Bonus (79) 79 TOTAL SCORE: 1017 Bonus ------- Follower Combat Kills 79 Cogmind --------- Core Integrity 0/250 Matter 285/300 Energy 99/100 System Corruption 1% Temperature Cool (0) Movement Rolling (80) Location -10/Subcaves Parts ------- > --- POWER (1) -------- (None) > --- PROPULSION (2) --- Wheel > --- UTILITY (2) ------ Medium Storage Unit Signal Interpreter > --- WEAPON (2) ------- (None) > --- INVENTORY (10) --- Light Nuclear Core Light Angular Momentum Engine Improved Heat Sink Large Matter Pod (150) Experimental Sensor Array Light Armor Plating Rocket Launcher Peak State ------------ > --- POWER ------------ Light Ion Engine > --- PROPULSION ------- Wheel Wheel > --- UTILITY ---------- Medium Storage Unit Signal Interpreter > --- WEAPON ----------- Assault Rifle Enhanced Flamer > --- INVENTORY -------- Light Nuclear Core Light Angular Momentum Engine Wheel Wheel Improved Heat Sink Large Matter Pod Experimental Sensor Array Light Armor Plating Light Assault Rifle Rocket Launcher [Rating: 11] Favorites ----------- Power Ion Engine Engine Ion Engine Propulsion Wheel Wheel Wheel Utility Signal Interpreter Device Sensor Array Storage Medium Storage Unit Processor Signal Interpreter Weapon Light Assault Rifle Energy Gun EM Pulse Gun Ballistic Gun Light Assault Rifle Special Weapon Enhanced Flamer Build | -11 -10 -10 -10 ------- Run | Yrd Mat Min Sub Slots Evolved . | . . . . Power . | . . . . Propulsion . | . . . . Utility . | . . . . Weapon . | . . . . Parts Attached 20 | 6 6 4 4 Power 2 | 1 . 1 . Engine 2 | 1 . 1 . Core . | . . . . Reactor . | . . . . Propulsion 7 | 2 2 1 2 Treads . | . . . . Leg . | . . . . Wheel 7 | 2 2 1 2 Hover . | . . . . Flight . | . . . . Utility 4 | 1 2 1 . Device 1 | . 1 . . Storage 2 | 1 . 1 . Processor 1 | . 1 . . Hackware . | . . . . Protection . | . . . . Artifact . | . . . . Weapon 7 | 2 2 1 2 Energy Gun 2 | 1 1 . . Energy Cannon . | . . . . Ballistic Gun 4 | 1 1 1 1 Ballistic Cannon . | . . . . Launcher . | . . . . Special Weapon 1 | . . . 1 Impact Weapon . | . . . . Slashing Weapon . | . . . . Piercing Weapon . | . . . . Special Melee Weapon . | . . . . Unidentified Prototypes . | . . . . Parts Lost 9 | . 2 . 7 Power 1 | . . . 1 Propulsion 4 | . 1 . 3 Utility . | . . . . Weapon 4 | . 1 . 3 Highest Loss Streak 7 | . 2 . 7 To Critical Strikes . | . . . . Average Slot Usage (%) 96 | . 95 100 78 Engine 13 | . 14 14 7 Wheel 26 | . 26 28 21 Device 3 | . 11 . . Storage 10 | . 2 14 14 Processor 13 | . 11 14 14 Energy Gun 11 | . 14 11 . Ballistic Gun 14 | . 14 16 9 Special Weapon 1 | . . . 11 Naked Turns . | . . . . Heaviest Build 18 | 13 13 18 17 Greatest Support 20 | 20 20 20 20 Greatest Overweight (x) 3 | 1 . . 3 Average Overweight (x) . | . . . . Largest Inventory Capacity 10 | 8 8 10 10 Average Capacity 8 | 7 5 9 10 Most Carried 10 | 6 5 10 10 Average Carried 7 | 2 3 8 9 Final Capacity 10 | 8 5 10 10 Final Carried 10 | 1 5 10 7 Class Distribution -------------------- 97% | Mutant Dominant Class ---------------- Mutant | -10/Materials Mutant | -10/Mines Mutant | -10/Subcaves Resources | -11 -10 -10 -10 ----------- Run | Yrd Mat Min Sub Matter Collected 552 | 225 96 231 . Remotely . | . . . . Salvage Created 282 | . 146 126 10 Parts 25 | . 9 14 2 Haulers Intercepted . | . . . . Recyclers Shooed . | . . . . Parts Field Recycled . | . . . . Retrieved Matter . | . . . . Parts Self-Destructed 4 | . . . 4 Prevented . | . . . . Kills | -11 -10 -10 -10 ------- Run | Yrd Mat Min Sub Combat Hostiles Destroyed 12 | . 5 6 1 Guns 12 | . 5 6 1 Classes Destroyed 2 | . 2 . . Swarmer 9 | . 3 5 1 Grunt 3 | . 2 1 . Best Kill Streak 5 | . 5 3 1 Combat Bots Only 5 | . 5 3 1 Max Kills in Single Turn 1 | . 1 1 1 Gunslinging . | . . . . Exploded . | . . . . Melee . | . . . . Uniques/NPCs Destroyed . | . . . . Combat | -11 -10 -10 -10 -------- Run | Yrd Mat Min Sub Hostile Shots Fired 99 | . 27 18 54 Missed 18 | . 3 5 10 Damage Taken 971 | . 279 123 569 Core 253 | . 67 23 163 Absorbed by Shields . | . . . . Core Remaining (%) 100 | 100 . . . Volleys Fired 37 | . 13 15 9 Largest 2 | . 2 2 2 Hottest 100 | . 70 60 100 Shots Fired 69 | . 26 30 13 Gun 60 | . 26 30 4 Cannon . | . . . . Launcher . | . . . . Special 9 | . . . 9 Kinetic 32 | . 13 15 4 Thermal 17 | . 8 . 9 Explosive . | . . . . Electromagnetic 20 | . 5 15 . Robot Hit Streak 17 | . 6 17 2 Robot Miss Streak 3 | . 2 2 3 Penetration Max . | . . . . Secondary Targets 3 | . 1 2 . Max Gunslinging Chain 1 | . 1 1 . Shots Hit Robots 44 | . 17 23 4 Core Hits 20 | . 9 10 1 Critical Kills 1 | . 1 . . Critical Parts Destroyed . | . . . . Critical Strikes 3 | . 2 1 . Burn 1 | . 1 . . Destroy 1 | . 1 . . Corrupt 1 | . . 1 . Melee Attacks . | . . . . Impact . | . . . . Slashing . | . . . . Piercing . | . . . . Sneak Attacks . | . . . . Combat Hostiles . | . . . . Follow-up Attacks . | . . . . Damage Inflicted 538 | . 214 275 49 Guns 462 | . 214 222 26 Cannons . | . . . . Explosions 53 | . . 53 . Melee . | . . . . Ramming . | . . . . Kinetic 183 | . 79 78 26 Thermal 173 | . 97 53 23 Explosive . | . . . . Electromagnetic 182 | . 38 144 . Impact . | . . . . Slashing . | . . . . Piercing . | . . . . Highest Corruption 1 | . 1 1 1 Average Corruption 1 | . 1 1 1 Corruption Purged . | . . . . Corruption Blocked . | . . . . Effects 6 | . 2 3 1 Message Errors 2 | . 1 1 . Matter Fused 3 | . 1 2 . Data Loss (minor) 1 | . . . 1 Overload Shots . | . . . . Overflow Damage . | . . . . Projectiles . | . . . . Explosions . | . . . . Melee . | . . . . Knockbacks . | . . . . Impact . | . . . . Kinetic . | . . . . Secondary . | . . . . Self-Inflicted Damage . | . . . . Shots . | . . . . Rammed . | . . . . Targets Rammed . | . . . . Kicked . | . . . . Crushed . | . . . . Highest Temperature 258 | . 258 29 . Average Temperature 97 | . 152 15 . Received Heat Transfer 186 | . 138 18 30 Siege Activations . | . . . . Robots Corrupted . | . . . . Combat Hostiles . | . . . . Parts Fried . | . . . . Impact Corruptions . | . . . . Robots Melted . | . . . . Combat Hostiles . | . . . . Parts Melted 2 | . 2 . . Heat Transferred 580 | . 370 50 160 Parts Sabotaged . | . . . . Parts Stolen . | . . . . Parts Stripped . | . . . . Power Chain Reactions 1 | . . 1 . Alert | -11 -10 -10 -10 ------- Run | Yrd Mat Min Sub Peak Influence 265 | . 105 265 . Initial 40 | . . 40 . Average 88 | . 38 117 . Maximum Alert Level 1 | . . 1 . Low Security (%) 95 | 100 100 92 . Level 1 4 | . . 7 . Level 2 . | . . . . Level 3 . | . . . . Level 4 . | . . . . Level 5 . | . . . . High Security . | . . . . Max Security . | . . . . Squads Dispatched . | . . . . Investigation . | . . . . Extermination . | . . . . Reinforcement . | . . . . Assault . | . . . . Garrison . | . . . . Intercept . | . . . . Searches Triggered . | . . . . Construction Impeded . | . . . . Haulers Reinforced . | . . . . Active Scanning Responses . | . . . . Cargo Convoy Interrupts . | . . . . Stealth | -11 -10 -10 -10 --------- Run | Yrd Mat Min Sub Distress Signals . | . . . . Communications Jammed . | . . . . Distress Signals . | . . . . Times Spotted 23 | . 5 13 5 Peak Tracking Total 5 | . 4 3 5 Tactical Retreats 2 | . . 2 . Traps | -11 -10 -10 -10 ------- Run | Yrd Mat Min Sub Traps Triggered 3 | . 1 . 2 Indirectly . | . . . . Trap Hack Attempts . | . . . . Triggered . | . . . . Disarmed . | . . . . Reprogrammed . | . . . . Reused . | . . . . Traps Extracted . | . . . . Installed . | . . . . Triggered . | . . . . Machines | -11 -10 -10 -10 ---------- Run | Yrd Mat Min Sub Machines Disabled 1 | . . 1 . Max in Single Turn 1 | . . 1 . Machines Repaired . | . . . . Machines Dismantled . | . . . . Machines Sabotaged . | . . . . Overloaded Fab Kills . | . . . . Hacking | -11 -10 -10 -10 --------- Run | Yrd Mat Min Sub Machines Accessed 2 | . 2 . . Terminals 2 | . 2 . . Fabricators . | . . . . Repair Stations . | . . . . Recycling Units . | . . . . Scanalyzers . | . . . . Garrison Access . | . . . . Total Hacks 8 | . 8 . . Successful 3 | . 3 . . Failed 5 | . 5 . . Catastrophic . | . . . . Database Lockouts . | . . . . Manual . | . . . . Terminals 8 | . 8 . . Fabricators . | . . . . Repair Stations . | . . . . Recycling Units . | . . . . Scanalyzers . | . . . . Garrison Access . | . . . . Terminal Hacks 3 | . 3 . . Prototype ID Bank 2 | . 2 . . Locate Traps 1 | . 1 . . Fabricator Hacks . | . . . . Repair Station Hacks . | . . . . Recycling Unit Hacks . | . . . . Scanalyzer . | . . . . Garrison Access Hacks . | . . . . Unauthorized Hacks . | . . . . Terminals . | . . . . Fabricators . | . . . . Repair Stations . | . . . . Recycling Units . | . . . . Scanalyzers . | . . . . Garrison Access . | . . . . Data Cores Recovered . | . . . . Used . | . . . . Hacking Detections 1 | . 1 . . Full Trace Events . | . . . . Feedback Events . | . . . . Feedback Blocked . | . . . . Robot Schematics Acquired . | . . . . Robots Built . | . . . . Authchips . | . . . . Time . | . . . . Total Robot Build Rating . | . . . . Part Schematics Acquired . | . . . . Parts Built . | . . . . Authchips . | . . . . Time . | . . . . Total Part Build Rating . | . . . . Parts Repaired . | . . . . Time . | . . . . Parts Recycled . | . . . . Recycled Matter . | . . . . Retrieved Matter . | . . . . Retrieved Components . | . . . . Parts Scanalyzed . | . . . . Part Schematics Acquired . | . . . . Parts Damaged . | . . . . Bothacking | -11 -10 -10 -10 ------------ Run | Yrd Mat Min Sub Used RIF Installer . | . . . . Robots Hacked . | . . . . Non-combat . | . . . . Combat . | . . . . Robot Hacks Applied . | . . . . Relay Couplers Released . | . . . . Fabnet Peak Effective % . | . . . . Robots Rewired . | . . . . Allies Hacked . | . . . . Hacks Repelled . | . . . . Allies | -11 -10 -10 -10 -------- Run | Yrd Mat Min Sub Total Allies 1 | . . 1 . Largest Group 1 | . . 1 . Highest-Rated Group 31 | . . 31 . Highest-Rated Ally 31 | . . 31 . Total Orders . | . . . . Ally Attacks 13 | . . 13 . Total Damage 150 | . . 150 . Kills 5 | . . 5 . Allies Corrupted . | . . . . Allies Melted . | . . . . Intel | -11 -10 -10 -10 ------- Run | Yrd Mat Min Sub Robot Analysis Total . | . . . . Derelict Logs Recovered 4 | . . 3 1 Drone Launches . | . . . . Drone Recoveries . | . . . . Exploration | -11 -10 -10 -10 ------------- Run | Yrd Mat Min Sub Turns Passed 929 | 41 250 539 99 Spaces Moved 897 | 39 240 544 74 Core 17 | 14 . . 3 Treads . | . . . . Legs . | . . . . Wheels 880 | 25 240 544 71 Hover . | . . . . Flight . | . . . . Fastest Speed 50 | 50 80 80 80 Average Speed 80 | 73 80 80 85 Slowest Speed 200 | 100 80 80 200 Overloaded Moves . | . . . . Propulsion Burnouts . | . . . . Robots Hopped . | . . . . Cave-ins Triggered . | . . . . Exploration Rate (%) 38 | 4 44 95 9 Regions Visited 3 Branch Regions 2 Pre-discovered Areas 2 | . . 1 1 Known Exits Taken 2 | . 1 1 . Unknown Exits Taken 1 | 1 . . . Scrap Searched 2 | . . 2 . Spaces Dug . | . . . . Terrain Destroyed 5 | . . 5 . Melee . | . . . . Projectile . | . . . . AOE 5 | . . 5 . Terrain Rammed . | . . . . Walls Destroyed . | . . . . Machines Disabled . | . . . . Actions | -11 -10 -10 -10 --------- Run | Yrd Mat Min Sub Total 1034 | 50 275 621 88 Wait 45 | . 1 44 . Move 894 | 38 239 543 74 Hop . | . . . . Pick Up 27 | 6 11 10 . Fast Attach 2 | 1 . . 1 Attach 11 | 5 3 . 3 Detach . | . . . . Swap 7 | . 3 4 . Drop 11 | . 5 5 1 Fire 37 | . 13 15 9 Melee . | . . . . Ram . | . . . . Kick . | . . . . Crush . | . . . . Escape Stasis . | . . . . Rewire . | . . . . Trap . | . . . . Miscellaneous . | . . . . Route ------- -11/Scrapyard -10/Materials (discovered 2 exits: *Mat / *Min) -10/Mines (discovered 3 exits: *Mat x2 / *Sub) -10/Subcaves History --------- Turn | Location | Event 26 | -11/Scrapyard | Discovered new exit (range 15) 42 | -11/Scrapyard | Entered Materials 163 | -10/Materials | Discovered new exit (range 6) 166 | -10/Materials | Identified exit to Materials 257 | -10/Materials | Discovered new exit (range 6) 291 | -10/Materials | Identified exit to Mines 292 | -10/Materials | Entered Mines 299 | -10/Mines | Received a Rocket Launcher from a helpful Derelict 317 | -10/Mines | Build established: Mutant 329 | -10/Mines | Found a damaged Exp. Sensor Array with a note attached 330 | -10/Mines | Found Prototype Device 349 | -10/Mines | Learned location of Zion (-6) 372 | -10/Mines | Learned 4 Materials zone layouts 395 | -10/Mines | Received a Mining Laser from a helpful Derelict 406 | -10/Mines | Identified exit to Subcaves 558 | -10/Mines | Joined a pair of Derelicts in attacking an 0b10 outpost 754 | -10/Mines | Discovered exit to Materials (range 7) 817 | -10/Mines | Discovered exit to Materials (range 7) 831 | -10/Mines | Entered Subcaves 832 | -10/Subcaves | Shifting Twisted Machinery released Enh. Flamer 832 | -10/Subcaves | Shifting Twisted Machinery released Sub. Power Source 839 | -10/Subcaves | Ambushed by Subdwellers from Twisted Machinery 870 | -10/Subcaves | Core integrity fell below 50% 908 | -10/Subcaves | Core integrity fell below 20% 930 | -10/Subcaves | Destroyed by XE-5UV(R) with Subdweller Machine Gun Last Messages --------------- 00866_ Spikes shoot up from the floor. 00866_ Critical hit (Impale). 00869_ Triggered Shrapnel Trap. 00869_ An expanding cloud of shrapnel blasts out in all directions. 00869_ Wheel destroyed. 00880_ Lgt. Ion Engine destroyed. 00880_ S-10 Pest destroyed. 00881_ Assault Rifle destroyed. 00890_ Acquired derelict log, extracted data. World map updated: -10/Materials. 00891_ Flight Unit fries itself beyond repair. 00894_ JD-5V9(z): "She is not going to be happy we haven't found any suitable candidates yet." 00894_ Flight Unit fries itself beyond repair. 00903_ Wheel destroyed. 00911_ Enh. Flamer destroyed. 00918_ Wheel destroyed. 00921_ S-10 Pest destroyed. 00923_ Lgt. Assault Rifle destroyed. Map ----- +----------------------------------------------------+ | ???????????????# ### # " | | ????????????????# " ### " | | ????????????????## " ### | | ????????????????# " ### ## | | ????????????????# " "" ## ### | | ????????????????## ""#" | | ????????????????# ##### ## # ## | | ????????????????# %## ## ## #####? | | ????????????????## ## ##????? | | ????????????????# ## ## #?????? | | ????????????????## ## ############?????? | | ??????????????######### #???????????????? | | ??????????????# ###?# #???????????????? | | ??????????????# ### ##???????????????? | | ???????????????# ## #????????????????? | | ???????????????# #????????????????? | | ???????????????# ## ##????????????????? | | ???????????????# ## R #?????????????????? | | ???????????????##### #?????????????????? | | ???????????????????# #?????????????????? | | ???????????????????# #?????????????????? | | ????????????????#### #?????????????????? | | ???????????????## ##?????????????????? | | ???????????????# ##??????????????????? | | ???????????????# ##???????????????????? | | ???????????????###@ ##????????????????????? | | ?????????????????# ##?????????????????????? | | ????????????????? #??????????????????????? | | ????????????????? ??????????????????????? | | ????????????????# ??????????????????????? | | ???????????????? ??????????????????????? | | ????????????????# #??????????????????????? | | ????????????????# ??????????????????????? | | ???????????????? #??????????????????????? | | ???????????????? ???????????????????????? | | ???????????????? #???????????????????????? | | ???????????????? ????????????????????????? | | ????????????????##????????????????????????? | | ??????????????????????????????????????????? | | ??????????????????????????????????????????? | | ??????????????????????????????????????????? | | ??????????????????????????????????????????? | | ??????????????????????????????????????????? | | ??????????????????????????????????????????? | | ??????????????????????????????????????????? | | ??????????????????????????????????????????? | | ??????????????????????????????????????????? | | ??????????????????????????????????????????? | | ??????????????????????????????????????????? | | ??????????????????????????????????????????? | +----------------------------------------------------+ Best States ------------- Heat Dissipation 25 Energy Generation 10 Energy Capacity 250 Matter Stores 300 Matter Capacity 300 Sight Range 16 Robot Scan Range 14 Terrain Scan Density 10 Evasion (%) 50 Item Schematics ----------------- None Robot Schematics ------------------ None Fabricated ------------ Nothing Alien Tech Used ----------------- None Achievements -------------- None Challenges ------------ None Game ------ Seed InsulationMissileTerrabomb Manual? 0 Play Time 00:22:03 Cumulative 70.8 hours Start 2024.04.27 @ 21:20:18 End 2024.04.28 @ 07:55:40 Sessions 1 Manual Loads 0 Difficulty Rogue Special Mode None Game No. 59 Rogue 59 Adventurer 0 Explorer 0 Win Type - Total 0 Types 0/0/0/0/0/0/0/0/0 Lore% 38 Gallery% 42 Achievement% 32 Wizard Run 0 Options --------- Layout 2 ASCII 0 Keyboard 0 Movement Mouse Keybinds 0 Fullscreen 1 Font 48/Smallcaps Map View 50x44 Zoom Use 0% Tactical HUD 1 Map Filters NONE Filters NONE Steam 1 RUN: ad515314-42f1-4599-bc27-02821768d2cf